bitfinex-derivatives/quotes_BTCF0:USTF0_20251109
["timestamp","ask_amount","ask_price","bid_price","bid_amount"]
[1762657258090,0.62092484,101760.0,101750.0,0.15688982]
[1762657258291,0.62092484,101760.0,101750.0,0.05857702]
[1762657258699,0.62092484,101760.0,101750.0,0.15688992]
[1762657260304,0.64362372,101760.0,101750.0,0.15688992]
[1762657260894,0.64362372,101760.0,101750.0,0.00114702]
[1762657260895,0.74588536,101760.0,101750.0,0.00114702]
[1762657261701,0.64362372,101760.0,101750.0,0.00114702]
[1762657261892,0.64362372,101760.0,101750.0,0.02305702]
[1762657262094,0.64362372,101760.0,101750.0,0.04475702]
[1762657262292,0.64362372,101760.0,101750.0,0.14306992]
[1762657262499,0.26974372,101760.0,101750.0,0.15688992]
[1762657262696,0.63054372,101760.0,101750.0,0.15688992]
[1762657262895,0.06917888,101760.0,101750.0,0.15688992]
[1762657263297,0.02369888,101760.0,101750.0,0.25915156]
[1762657263706,0.04697888,101760.0,101750.0,0.25915156]
[1762657263904,0.06917888,101760.0,101750.0,0.25915156]
[1762657265203,0.06917888,101760.0,101750.0,0.61995156]
[1762657265398,0.04648,101760.0,101750.0,0.61995156]
[1762657266406,0.02428,101760.0,101750.0,0.61995156]
[1762657266604,0.001,101760.0,101750.0,0.61995156]
[1762657266806,0.02362852,101760.0,101750.0,0.61995156]
[1762657267902,0.04690852,101760.0,101750.0,0.61995156]
[1762657268103,0.06910852,101760.0,101750.0,0.51768992]
[1762657268292,0.06910852,101760.0,101750.0,0.61974704]
[1762657268293,0.0691103,101760.0,101750.0,0.61974704]
[1762657269402,0.26947062,101760.0,101750.0,0.61974704]
[1762657269598,0.26947062,101760.0,101750.0,0.25894704]
[1762657272605,0.74540774,101760.0,101750.0,0.04475702]
[1762657272810,0.74540774,101760.0,101750.0,0.14306982]
[1762657273008,0.74540774,101760.0,101750.0,0.04475702]
[1762657273202,0.78058029,101760.0,101750.0,0.04475702]
[1762657273402,0.57646605,101760.0,101750.0,0.14306982]
[1762657273614,0.74540774,101760.0,101750.0,0.14306982]
[1762657274211,0.78058029,101760.0,101750.0,0.14306982]
[1762657275323,0.78058029,101760.0,101750.0,0.04475702]
[1762657275812,0.78058029,101760.0,101750.0,0.14306982]
[1762657277014,0.74540774,101760.0,101750.0,0.14306982]
[1762657277914,0.74540774,101760.0,101750.0,0.04475702]
[1762657278113,0.74540774,101760.0,101750.0,0.00114702]
[1762657278308,0.78058029,101760.0,101750.0,0.00114702]
[1762657279314,0.78158029,101760.0,101750.0,0.00114702]
[1762657279714,0.83433911,101760.0,101750.0,0.00114702]
[1762657279907,0.98097882,101760.0,101750.0,0.00114702]
[1762657280302,0.98097882,101760.0,101750.0,0.00014702]
[1762657280517,0.98197882,101760.0,101750.0,0.00014702]
[1762657284225,0.98202868,101760.0,101750.0,0.00014702]
[1762657284828,0.92926986,101760.0,101750.0,0.00014702]
[1762657289217,0.92926986,101760.0,101750.0,0.02180702]
[1762657289826,0.92926986,101760.0,101750.0,0.00014702]
[1762657294331,0.92726986,101760.0,101750.0,0.00014702]
[1762657294526,0.92926986,101760.0,101750.0,0.00014702]
[1762657294724,0.1523725,101740.0,101730.0,0.3030222]
[1762657294924,0.7399669,101740.0,101730.0,0.3030222]
[1762657295823,0.7399669,101740.0,101730.0,0.19143]
[1762657296833,0.7399669,101740.0,101730.0,0.19243]
[1762657297733,0.7399669,101740.0,101730.0,0.19143]
[1762657297934,0.7399669,101740.0,101730.0,0.19243]
[1762657298327,0.7399669,101740.0,101730.0,0.2907622]
[1762657298725,0.7399669,101740.0,101730.0,0.2917622]
[1762657298926,0.7399669,101740.0,101730.0,0.19343]
[1762657299327,0.7399669,101740.0,101730.0,0.04513]
[1762657299725,0.7399669,101740.0,101730.0,0.04413]
[1762657299925,0.7399669,101740.0,101730.0,0.04613]
[1762657300732,0.7399669,101740.0,101730.0,0.04513]
[1762657303235,0.7399669,101740.0,101730.0,0.04313]
[1762657303436,0.7399669,101740.0,101730.0,0.04513]
[1762657304031,0.7409669,101740.0,101730.0,0.04513]
[1762657304944,0.7399669,101740.0,101730.0,0.04513]
[1762657306127,0.7399669,101740.0,101730.0,0.002]
[1762657306334,0.1535722,101730.0,101720.0,0.04375702]
[1762657306636,0.63910948,101730.0,101720.0,0.04375702]
[1762657307541,0.63910948,101730.0,101720.0,0.04575702]
[1762657311842,0.63910948,101730.0,101720.0,0.14409892]
[1762657312635,0.63910948,101730.0,101720.0,0.00214702]
[1762657313338,0.63910948,101730.0,101720.0,0.02427702]
[1762657313737,0.63910948,101730.0,101720.0,0.04575702]
[1762657314440,0.63910948,101730.0,101720.0,0.02427702]
[1762657314834,0.53705236,101730.0,101720.0,0.04575702]
[1762657315034,0.63910948,101730.0,101720.0,0.04575702]
[1762657316042,0.63910948,101730.0,101720.0,0.00214702]
[1762657316243,0.63910948,101730.0,101720.0,0.02334702]
[1762657316543,0.63910948,101730.0,101720.0,0.04532702]
[1762657317045,0.64010948,101730.0,101720.0,0.04532702]
[1762657317246,0.64010948,101730.0,101720.0,0.14366882]
[1762657317443,0.64010948,101730.0,101720.0,0.04532702]
[1762657319844,0.64010948,101730.0,101720.0,0.04332702]
[1762657320145,0.64010948,101730.0,101720.0,0.00014702]
[1762657320346,0.64010948,101730.0,101720.0,0.02134702]
[1762657320637,0.64010948,101730.0,101720.0,0.14166882]
[1762657321045,0.64010948,101730.0,101720.0,0.04332702]
[1762657321546,0.64010948,101730.0,101720.0,0.14166882]
[1762657321947,0.64010948,101730.0,101720.0,0.04332702]
[1762657322148,0.7421666,101730.0,101720.0,0.04332702]
[1762657322749,0.64010948,101730.0,101720.0,0.04332702]
[1762657323349,0.64010948,101730.0,101720.0,0.14166882]
[1762657323742,0.64010948,101730.0,101720.0,0.04332702]
[1762657324355,0.64010948,101730.0,101720.0,0.02134702]
[1762657324549,0.64010948,101730.0,101720.0,0.04332702]
[1762657325642,0.64010948,101730.0,101720.0,0.14166882]
[1762657326348,0.64010948,101730.0,101720.0,0.04332702]
[1762657326754,0.7421666,101730.0,101720.0,0.04332702]
[1762657327250,0.7421666,101730.0,101720.0,0.00014702]
[1762657329656,0.1546115,101710.0,101700.0,0.2898412]
[1762657329848,0.27947115,101710.0,101700.0,0.2898412]
[1762657330047,0.27947115,101710.0,101700.0,0.3034412]
[1762657330451,0.27960436,101710.0,101700.0,0.3034412]
[1762657330849,0.64040436,101710.0,101700.0,0.19148]
[1762657331153,0.64040436,101710.0,101700.0,0.19348]
[1762657331750,0.64040436,101710.0,101700.0,0.2918412]
[1762657331961,0.64040436,101710.0,101700.0,0.3054412]
[1762657334452,0.64040436,101710.0,101700.0,0.1571412]
[1762657335059,0.06598253,101710.0,101700.0,0.5179412]
[1762657335261,0.02280253,101710.0,101700.0,0.62013153]
[1762657335456,0.02150702,101720.0,101710.0,0.1551315]
[1762657335650,0.02150702,101720.0,101710.0,0.61812183]
[1762657335651,0.0229494,101720.0,101710.0,0.61812183]
[1762657336654,0.00114702,101720.0,101710.0,1.01222183]
[1762657337153,0.00114702,101720.0,101710.0,0.76642183]
[1762657337346,0.00114702,101720.0,101710.0,1.01222183]
[1762657337950,0.00114702,101720.0,101710.0,1.01522183]
[1762657338353,0.00114702,101720.0,101710.0,0.76942183]
[1762657338552,0.00014702,101720.0,101710.0,0.76942183]
[1762657338752,0.00014702,101720.0,101710.0,0.77142183]
[1762657338954,0.00014702,101720.0,101710.0,1.01722183]
[1762657339149,0.00014702,101720.0,101710.0,0.77142183]
[1762657339561,0.02150702,101720.0,101710.0,0.77142183]
[1762657339760,0.04332702,101720.0,101710.0,0.77142183]
[1762657339958,0.14166892,101720.0,101710.0,0.6692315]
[1762657340152,0.16446307,101720.0,101710.0,0.3084315]
[1762657340360,0.16446307,101720.0,101710.0,0.1601315]
[1762657343954,0.2666534,101720.0,101710.0,0.1601315]
[1762657344858,0.16446307,101720.0,101710.0,0.1601315]
[1762657345560,0.16446307,101720.0,101710.0,0.1581315]
[1762657346158,0.16446307,101720.0,101710.0,0.3064315]
[1762657346660,0.16446307,101720.0,101710.0,0.3054315]
[1762657354166,0.6409534,101720.0,101710.0,0.3054315]
[1762657354574,0.6274534,101720.0,101710.0,0.3054315]
[1762657355971,0.16446307,101720.0,101710.0,0.3054315]
[1762657357165,0.2801534,101720.0,101710.0,0.3054315]
[1762657357370,0.6409534,101720.0,101710.0,0.3054315]
[1762657357577,0.6409534,101720.0,101710.0,0.20708]
[1762657357977,0.6409534,101720.0,101710.0,0.05878]
[1762657359385,0.6409534,101720.0,101710.0,0.1571315]
[1762657363587,0.6274534,101720.0,101710.0,0.1571315]
[1762657363777,0.02294117,101720.0,101710.0,0.76842183]
[1762657363978,0.44873137,101740.0,101710.0,0.76842183]
[1762657364187,0.4036,101740.0,101730.0,0.1561422]
[1762657364891,0.5019225,101740.0,101730.0,0.1561422]
[1762657365088,0.1411225,101740.0,101730.0,0.1561422]
[1762657365281,0.5019225,101740.0,101730.0,0.1561422]
[1762657365683,0.1411225,101740.0,101730.0,0.1561422]
[1762657365893,0.1431225,101740.0,101730.0,0.1561422]
[1762657366191,0.1451225,101740.0,101730.0,0.1561422]
[1762657366981,0.24731283,101740.0,101730.0,0.1561422]
[1762657367494,0.24531283,101740.0,101730.0,0.1581422]
[1762657367693,0.1431225,101740.0,101730.0,0.1581422]
[1762657367894,0.25816283,101740.0,101730.0,0.1581422]
[1762657368094,0.25616283,101740.0,101730.0,0.1581422]
[1762657368488,0.1411225,101740.0,101730.0,0.1581422]
[1762657368790,0.1411225,101740.0,101730.0,0.05981]
[1762657368994,0.25616283,101740.0,101730.0,0.1581422]
[1762657369297,0.24331283,101740.0,101730.0,0.1581422]
[1762657369604,0.24331283,101740.0,101730.0,0.3064422]
[1762657371493,0.25616283,101740.0,101730.0,0.19476]
[1762657371699,0.61696283,101740.0,101730.0,0.19476]
[1762657372386,0.61696283,101740.0,101730.0,0.2930922]
[1762657374296,0.4036,101740.0,101730.0,0.3060022]
[1762657376095,0.42657911,101740.0,101730.0,0.3060022]
[1762657376396,0.52490161,101740.0,101730.0,0.3060022]
[1762657376903,0.62709194,101740.0,101730.0,0.3060022]
[1762657377093,0.64007194,101740.0,101730.0,0.3060022]
[1762657380199,0.62709194,101740.0,101730.0,0.3060022]
[1762657380392,0.64007194,101740.0,101730.0,0.3060022]
[1762657381502,0.54174944,101740.0,101730.0,0.3060022]
[1762657381800,0.52876944,101740.0,101730.0,0.3060022]
[1762657382100,0.62709194,101740.0,101730.0,0.3060022]
[1762657382401,0.64007194,101740.0,101730.0,0.3060022]
[1762657382897,0.64007194,101740.0,101730.0,0.2930922]
[1762657385501,0.64007194,101740.0,101730.0,0.3057422]
[1762657385903,0.54174944,101740.0,101730.0,0.3057422]
[1762657386098,0.42657911,101740.0,101730.0,0.3057422]
[1762657386299,0.06577911,101740.0,101730.0,0.3057422]
[1762657392302,0.02297911,101740.0,101730.0,0.87067906]
[1762657392492,0.36094702,101750.0,101740.0,0.1554626]
[1762657392697,0.40452938,101750.0,101740.0,0.50789946]
[1762657393312,0.42761938,101750.0,101740.0,0.40583103]
[1762657393496,0.52593228,101750.0,101740.0,0.3037626]
[1762657393702,0.62800071,101750.0,101740.0,0.40583103]
[1762657393905,0.62900071,101750.0,101740.0,0.40583103]
[1762657394708,0.53068781,101750.0,101740.0,0.40583103]
[1762657396509,0.53068781,101750.0,101740.0,0.2911125]
[1762657396510,0.64198071,101750.0,101740.0,0.2911125]
[1762657397007,0.74404914,101750.0,101740.0,0.1483]
[1762657397713,0.77922169,101750.0,101740.0,0.1483]
[1762657398512,0.77922169,101750.0,101740.0,0.16973]
[1762657401013,0.77922169,101750.0,101740.0,0.1483]
[1762657401709,0.77922169,101750.0,101720.0,0.19293702]
[1762657401710,0.1489322,101730.0,101720.0,0.19293702]
[1762657401908,0.1489322,101730.0,101720.0,0.16987702]
[1762657401909,0.63436299,101730.0,101720.0,0.16987702]
[1762657402104,0.63436299,101730.0,101720.0,0.19293702]
[1762657403011,0.63436299,101730.0,101720.0,0.29127892]
[1762657403614,0.63436299,101730.0,101720.0,0.29227892]
[1762657404406,0.63436299,101730.0,101720.0,0.29327892]
[1762657404907,0.63436299,101730.0,101720.0,0.14497892]
[1762657407816,0.53229456,101730.0,101720.0,0.15780892]
[1762657408115,0.63436299,101730.0,101720.0,0.15780892]
[1762657409419,0.53603079,101730.0,101720.0,0.15780892]
[1762657409614,0.52954079,101730.0,101720.0,0.15780892]
[1762657409819,0.62787299,101730.0,101720.0,0.15780892]
[1762657411618,0.06667236,101730.0,101720.0,0.25987735]
[1762657411820,0.06667236,101730.0,101720.0,0.62067735]
[1762657412018,0.02256236,101730.0,101720.0,0.72274578]
[1762657412219,0.24546123,101740.0,101730.0,0.1546325]
[1762657412521,0.26798913,101740.0,101730.0,0.25670093]
[1762657412721,0.16966633,101740.0,101730.0,0.61750093]
[1762657412921,0.16966633,101740.0,101730.0,0.5154325]
[1762657413114,0.0675979,101740.0,101730.0,0.61750093]
[1762657413312,0.14713843,101740.0,101730.0,0.61750093]
[1762657414015,0.04507,101740.0,101730.0,0.61750093]
[1762657414419,0.04607,101740.0,101730.0,0.61750093]
[1762657415018,0.24646093,101740.0,101730.0,0.61750093]
[1762657415724,0.14813843,101740.0,101730.0,0.61750093]
[1762657416115,0.04607,101740.0,101730.0,0.61750093]
[1762657416314,0.14813843,101740.0,101730.0,0.61750093]
[1762657416623,0.14813843,101740.0,101730.0,0.76580093]
[1762657417225,0.14813843,101740.0,101730.0,0.6637325]
[1762657417422,0.14813843,101740.0,101730.0,0.76580093]
[1762657418723,0.04607,101740.0,101730.0,0.76580093]
[1762657421636,0.001,101740.0,101730.0,0.76580093]
[1762657421925,0.12515843,101740.0,101730.0,0.76580093]
[1762657422127,0.14813843,101740.0,101730.0,0.76580093]
[1762657422627,0.04607,101740.0,101730.0,0.76580093]
[1762657422928,0.001,101740.0,101730.0,0.61750093]
[1762657423127,0.02309,101740.0,101730.0,0.61750093]
[1762657423329,0.04607,101740.0,101730.0,0.61750093]
[1762657423622,0.04607,101740.0,101730.0,0.25670093]
[1762657423827,0.06880669,101740.0,101730.0,0.61750093]
[1762657424028,0.17087512,101740.0,101730.0,0.61750093]
[1762657425029,0.17087512,101740.0,101730.0,0.69689547]
[1762657425633,0.28614355,101740.0,101730.0,0.1546422]
[1762657426022,0.18407512,101740.0,101730.0,0.5154422]
[1762657426222,0.17087512,101740.0,101730.0,0.5154422]
[1762657427734,0.17087512,101740.0,101730.0,0.61751063]
[1762657428032,0.04582669,101740.0,101730.0,0.61751063]
[1762657428529,0.06697669,101740.0,101730.0,0.76581063]
[1762657428924,0.16904512,101740.0,101730.0,0.76581063]
[1762657431837,0.14630843,101740.0,101730.0,0.76581063]
[1762657433337,0.12515843,101740.0,101730.0,0.76581063]
[1762657433738,0.12515843,101740.0,101730.0,0.84611765]
[1762657434240,0.14630843,101740.0,101730.0,0.84611765]
[1762657436333,0.16905564,101740.0,101730.0,0.84611765]
[1762657436640,0.06698721,101740.0,101730.0,0.84611765]
[1762657436940,0.16905564,101740.0,101730.0,0.84611765]
[1762657438443,0.12581564,101740.0,101730.0,0.84611765]
[1762657438942,0.16894564,101740.0,101730.0,0.84611765]
[1762657440136,0.02374721,101740.0,101730.0,0.84611765]
[1762657440339,0.00014702,101750.0,101740.0,0.05743]
[1762657440543,0.00014702,101750.0,101740.0,0.72068936]
[1762657440940,0.00014702,101750.0,101740.0,0.61862093]
[1762657441246,0.00014702,101750.0,101740.0,0.72068936]
[1762657441441,0.00014702,101750.0,101740.0,0.96640936]
[1762657441841,0.00014702,101750.0,101740.0,0.72068936]
[1762657442042,0.00014702,101750.0,101740.0,0.96640936]
[1762657442238,0.00414702,101750.0,101740.0,0.96640936]
[1762657442739,0.60429233,101770.0,101760.0,0.05743]
[1762657443545,0.24349233,101770.0,101760.0,0.05743]
[1762657444144,0.24749233,101770.0,101760.0,0.05743]
[1762657444546,0.24749233,101770.0,101760.0,0.1557332]
[1762657445550,0.25149233,101770.0,101760.0,0.1567332]
[1762657446450,0.24349233,101770.0,101760.0,0.1557332]
[1762657446643,0.24949233,101770.0,101760.0,0.1557332]
[1762657446838,0.61713233,101770.0,101760.0,0.04448]
[1762657447044,0.61713233,101770.0,101760.0,0.02193]
[1762657447045,0.71920076,101770.0,101760.0,0.02193]
[1762657447243,0.61713233,101770.0,101760.0,0.04448]
[1762657447642,0.61713233,101770.0,101750.0,0.15588242]
[1762657447643,0.1548632,101760.0,101750.0,0.15588242]
[1762657447840,0.35900006,101760.0,101750.0,0.15588242]
[1762657448240,0.35900006,101760.0,101750.0,0.14293242]
[1762657448446,0.71980006,101760.0,101750.0,0.14293242]
[1762657449252,0.72280006,101760.0,101750.0,0.14293242]
[1762657449649,0.72280006,101760.0,101750.0,0.14293992]
[1762657452151,0.36200006,101760.0,101750.0,0.14293992]
[1762657452352,0.28216037,101760.0,101750.0,0.14293992]
[1762657452847,0.64296037,101760.0,101750.0,0.14293992]
[1762657454851,0.64296037,101760.0,101750.0,0.04462702]
[1762657455042,0.74505258,101760.0,101750.0,0.00014702]
[1762657455243,0.74505258,101760.0,101750.0,0.02207702]
[1762657455447,0.74505258,101760.0,101750.0,0.00014702]
[1762657457263,0.78022513,101760.0,101750.0,0.00014702]
[1762657459559,0.25025471,101740.0,101730.0,0.2911122]
[1762657459752,0.63325967,101740.0,101730.0,0.2911122]
[1762657461565,0.63325967,101740.0,101730.0,0.2941122]
[1762657463462,0.63325967,101740.0,101730.0,0.1458122]
[1762657464162,0.63325967,101740.0,101730.0,0.1587622]
[1762657464358,0.53493717,101740.0,101730.0,0.1587622]
[1762657464759,0.63325977,101740.0,101730.0,0.1587622]
[1762657465155,0.62654977,101740.0,101730.0,0.1587622]
[1762657465358,0.52822717,101740.0,101730.0,0.1587622]
[1762657466268,0.62654977,101740.0,101730.0,0.1587622]
[1762657467058,0.52822717,101740.0,101730.0,0.1587622]
[1762657467264,0.04313,101740.0,101730.0,0.5195622]
[1762657467466,0.50236712,101750.0,101740.0,0.1545426]
[1762657467658,0.62665722,101750.0,101740.0,0.1545426]
[1762657468156,0.26585722,101750.0,101740.0,0.1545426]
[1762657468659,0.27918722,101750.0,101740.0,0.04419]
[1762657468860,0.63998722,101750.0,101740.0,0.04419]
[1762657469562,0.63998722,101750.0,101740.0,0.1425125]
[1762657469758,0.63998722,101750.0,101740.0,0.04419]
[1762657470464,0.63998722,101750.0,101740.0,0.1425125]
[1762657470761,0.63998722,101750.0,101740.0,0.04419]
[1762657471170,0.63998722,101750.0,101740.0,0.1425125]
[1762657472467,0.63998722,101750.0,101740.0,0.04419]
[1762657472667,0.63998722,101750.0,101740.0,0.001]
[1762657478968,0.67520079,101750.0,101740.0,0.001]
[1762657480370,0.05643,101730.0,101720.0,0.66372792]
[1762657480562,0.15852221,101730.0,101720.0,0.66372792]
[1762657481170,0.25685441,101730.0,101720.0,0.66372792]
[1762657481366,0.25685441,101730.0,101720.0,0.30292792]
[1762657481568,0.27937208,101730.0,101720.0,0.30492792]
[1762657481976,0.27937208,101730.0,101720.0,0.30792792]
[1762657482265,0.16394987,101730.0,101720.0,0.30792792]
[1762657482472,0.06561767,101730.0,101720.0,0.66872792]
[1762657483261,0.16770988,101730.0,101720.0,0.66872792]
[1762657484272,0.26604208,101730.0,101720.0,0.66872792]
[1762657488470,0.16770988,101730.0,101720.0,0.66872792]
[1762657489167,0.17454988,101730.0,101720.0,0.66872882]
[1762657489374,0.63368208,101730.0,101720.0,0.04833702]
[1762657489975,0.73577429,101730.0,101720.0,0.04833702]
[1762657490974,0.63368208,101730.0,101720.0,0.04833702]
[1762657491379,0.63368208,101730.0,101720.0,0.04433702]
[1762657491578,0.63368208,101730.0,101720.0,0.04533702]
[1762657492067,0.63368208,101730.0,101720.0,0.04333702]
[1762657492670,0.73577429,101730.0,101720.0,0.04333702]
[1762657492868,0.73577429,101730.0,101720.0,0.04433702]
[1762657493070,0.63368208,101730.0,101720.0,0.04533702]
[1762657493878,0.73577429,101730.0,101720.0,0.04533702]
[1762657494080,0.73577429,101730.0,101720.0,0.00214702]
[1762657494278,0.73577429,101730.0,101720.0,0.04574702]
[1762657495170,0.73577429,101730.0,101720.0,0.04474702]
[1762657496981,0.73577429,101730.0,101720.0,0.00014702]
[1762657497277,0.77098786,101730.0,101720.0,0.00014702]
[1762657498386,0.73577429,101730.0,101720.0,0.00014702]
[1762657502181,0.77098786,101730.0,101720.0,0.00014702]
[1762657502679,0.91905156,101730.0,101720.0,0.00014702]
[1762657502875,0.24641341,101700.0,101690.0,0.23336156]
[1762657503076,0.24641341,101700.0,101690.0,0.38166156]
[1762657503473,0.62054341,101700.0,101690.0,0.04465]
[1762657503674,0.7451043,101700.0,101690.0,0.04465]
[1762657503980,0.65302581,101700.0,101690.0,0.04865]
[1762657504379,0.75511802,101700.0,101690.0,0.02533]
[1762657504578,0.75511129,101700.0,101690.0,0.008]
[1762657505380,0.1565109,101690.0,101680.0,0.04479702]
[1762657505575,0.64185328,101690.0,101680.0,0.04479702]
[1762657506482,0.64185328,101690.0,101680.0,0.02147702]
[1762657506682,0.64185328,101690.0,101680.0,0.00014702]
[1762657507186,0.64185328,101690.0,101680.0,0.00414702]
[1762657507690,0.64285328,101690.0,101680.0,0.00914702]
[1762657508189,0.64285328,101690.0,101680.0,0.05379702]
[1762657514287,0.64300102,101690.0,101680.0,0.05379702]
[1762657514595,0.74524097,101690.0,101680.0,0.05379702]
[1762657515196,0.74524097,101690.0,101680.0,0.03047702]
[1762657516395,0.74524097,101690.0,101680.0,0.05379702]
[1762657519398,0.74524097,101690.0,101680.0,0.15217752]
[1762657519988,0.1106132,101680.0,101670.0,0.0983879]
[1762657520194,0.1106132,101680.0,101670.0,0.1563779]
[1762657520195,0.73207327,101680.0,101670.0,0.1563779]
[1762657521296,0.73307327,101680.0,101670.0,0.1563779]
[1762657521700,0.17165012,101680.0,101670.0,0.61941785]
[1762657521896,0.27003062,101680.0,101670.0,0.61941785]
[1762657522194,0.27003062,101680.0,101670.0,0.5171779]
[1762657522397,0.14461067,101680.0,101670.0,0.61941785]
[1762657522695,0.12569012,101680.0,101670.0,0.61941785]
[1762657522897,0.26903062,101680.0,101670.0,0.61941785]
[1762657523200,0.27003062,101680.0,101670.0,0.62041785]
[1762657523787,0.26903062,101680.0,101670.0,0.62041785]
[1762657523998,0.26903062,101680.0,101670.0,0.5181779]
[1762657524197,0.26901485,101680.0,101670.0,0.62041785]
[1762657524596,0.7442348,101680.0,101670.0,0.04565]
[1762657525498,0.05686,101670.0,101660.0,0.30468682]
[1762657525702,0.64072455,101670.0,101660.0,0.04464702]
[1762657526304,0.7429645,101670.0,101660.0,0.00014702]
[1762657526597,0.64072455,101670.0,101660.0,0.14304692]
[1762657526797,0.26769455,101670.0,101660.0,0.51740692]
[1762657527295,0.16930435,101670.0,101660.0,0.51840692]
[1762657527696,0.26766706,101670.0,101660.0,0.51840692]
[1762657528002,0.16927686,101670.0,101660.0,0.51940692]
[1762657531105,0.26766706,101670.0,101660.0,0.51940692]
[1762657536994,0.74293701,101670.0,101660.0,0.00214702]
[1762657538108,0.53845711,101670.0,101660.0,0.04664702]
[1762657538307,0.64069706,101670.0,101660.0,0.04664702]
[1762657539506,0.64069706,101670.0,101660.0,0.14504692]
[1762657539707,0.64069706,101670.0,101660.0,0.04664702]
[1762657542906,0.64069706,101670.0,101660.0,0.14504692]
[1762657544210,0.64069706,101670.0,101660.0,0.04664702]
[1762657544714,0.74293701,101670.0,101660.0,0.04664702]
[1762657545410,0.74293701,101670.0,101660.0,0.14504692]
[1762657545706,0.74293701,101670.0,101660.0,0.00214702]
[1762657546511,0.77815058,101670.0,101660.0,0.00214702]
[1762657549014,0.9248428,101670.0,101660.0,0.00214702]
[1762657551907,0.97760162,101670.0,101660.0,0.00214702]
[1762657553112,0.152981,101660.0,101650.0,0.00010613]
[1762657553310,0.74066781,101660.0,101650.0,0.00010613]
[1762657554318,0.74066781,101660.0,101650.0,0.00210613]
[1762657554518,0.74166781,101660.0,101650.0,0.00310613]
[1762657555715,0.84390776,101660.0,101650.0,0.00310613]
[1762657555919,0.87912133,101660.0,101650.0,0.00310613]
[1762657556218,0.1520612,101650.0,101640.0,0.00014702]
[1762657556417,0.73974801,101650.0,101640.0,0.00014702]
[1762657557205,0.73983921,101650.0,101640.0,0.00014702]
[1762657558310,0.74083921,101650.0,101640.0,0.00114702]
[1762657559218,0.74083921,101650.0,101640.0,0.00314702]
[1762657559518,0.77605278,101650.0,101640.0,0.00314702]
[1762657560917,0.77605278,101650.0,101640.0,0.04637702]
[1762657561117,0.74083921,101650.0,101640.0,0.04637702]
[1762657561313,0.73983921,101650.0,101640.0,0.04537702]
[1762657561513,0.74083921,101650.0,101640.0,0.04637702]
[1762657561914,0.74083921,101650.0,101640.0,0.00314702]
[1762657562717,0.74083921,101650.0,101640.0,0.00214702]
[1762657564825,0.53635931,101650.0,101640.0,0.04537702]
[1762657565025,0.63859926,101650.0,101640.0,0.04537702]
[1762657565426,0.74083921,101650.0,101640.0,0.04537702]
[1762657567424,0.77605278,101650.0,101640.0,0.04537702]
[1762657567927,0.74083921,101650.0,101640.0,0.04537702]
[1762657568520,0.52723931,101650.0,101640.0,0.15640722]
[1762657568726,0.62947926,101650.0,101640.0,0.05798702]
[1762657570121,0.74083921,101650.0,101640.0,0.04537702]
[1762657570627,0.74083921,101650.0,101640.0,0.14379722]
[1762657570828,0.74083921,101650.0,101640.0,0.04537702]
[1762657571716,0.63859926,101650.0,101640.0,0.14379722]
[1762657571921,0.63859926,101650.0,101640.0,0.05798702]
[1762657572121,0.63859926,101650.0,101640.0,0.15640722]
[1762657572327,0.62947926,101650.0,101640.0,0.15640722]
[1762657573127,0.26867926,101650.0,101640.0,0.51720722]
[1762657573318,0.26867926,101650.0,101640.0,0.61944717]
[1762657573518,0.26867926,101650.0,101640.0,0.51720722]
[1762657576426,0.26873277,101650.0,101640.0,0.51720722]
[1762657576826,0.16643931,101650.0,101640.0,0.51720722]
[1762657577026,0.26873277,101650.0,101640.0,0.51720722]
[1762657578626,0.26873277,101650.0,101640.0,0.05798702]
[1762657578841,0.62953277,101650.0,101640.0,0.05798702]
[1762657579625,0.52723931,101650.0,101640.0,0.05798702]
[1762657579831,0.63965277,101650.0,101640.0,0.04437702]
[1762657580922,0.63865277,101650.0,101640.0,0.04337702]
[1762657581128,0.64065277,101650.0,101640.0,0.04437702]
[1762657582533,0.64065277,101650.0,101640.0,0.14279722]
[1762657582736,0.64065277,101650.0,101640.0,0.04437702]
[1762657584436,0.63965277,101650.0,101640.0,0.04437702]
[1762657584737,0.64065277,101650.0,101640.0,0.04437702]
[1762657588133,0.64065277,101650.0,101640.0,0.14279722]
[1762657588340,0.64065277,101650.0,101640.0,0.02257702]
[1762657588737,0.64065277,101650.0,101640.0,0.04475702]
[1762657589332,0.64065277,101650.0,101640.0,0.02257702]
[1762657589733,0.64065277,101650.0,101640.0,0.04475702]
[1762657589934,0.64065277,101650.0,101640.0,0.00114702]
[1762657590438,0.67586634,101650.0,101640.0,0.00114702]
[1762657591644,0.7781598,101650.0,101640.0,0.00114702]
[1762657591937,0.92422246,101650.0,101630.0,0.1483]
[1762657592139,0.1535599,101630.0,101620.0,0.05897]
[1762657592339,0.63906027,101630.0,101620.0,0.05897]
[1762657593855,0.63906027,101630.0,101620.0,0.1574096]
[1762657594040,0.26722027,101630.0,101620.0,0.1574096]
[1762657594543,0.26822027,101630.0,101620.0,0.1574096]
[1762657594743,0.26822027,101630.0,101620.0,0.1584096]
[1762657594944,0.16592681,101630.0,101620.0,0.1584096]
[1762657597648,0.12183681,101630.0,101620.0,0.5192096]
[1762657601359,0.12183681,101630.0,101620.0,0.6675096]
[1762657601549,0.16592681,101630.0,101620.0,0.6675096]
[1762657602539,0.16566604,101630.0,101620.0,0.6675096]
[1762657607760,0.16566604,101630.0,101620.0,0.3067096]
[1762657608059,0.16566604,101630.0,101620.0,0.6675096]
[1762657608874,0.16566604,101630.0,101620.0,0.3067096]
[1762657609161,0.16566604,101630.0,101620.0,0.6675096]
[1762657611057,0.52646604,101630.0,101620.0,0.20827]
[1762657611353,0.52646604,101630.0,101620.0,0.19471]
[1762657611354,0.63987965,101630.0,101620.0,0.19471]
[1762657612963,0.64964937,101630.0,101620.0,0.04641]
[1762657614063,0.64964937,101630.0,101620.0,0.02423]
[1762657614565,0.64964937,101630.0,101620.0,0.0472]
[1762657614763,0.63987965,101630.0,101620.0,0.1456397]
[1762657614963,0.63987965,101630.0,101620.0,0.1584997]
[1762657615664,0.63987965,101630.0,101620.0,0.001]
[1762657615857,0.64985568,101630.0,101620.0,0.001]
[1762657616372,0.64985568,101630.0,101620.0,0.02424]
[1762657617265,0.64985568,101630.0,101620.0,0.001]
[1762657617963,0.64985568,101630.0,101620.0,0.02424]
[1762657619570,0.64985568,101630.0,101620.0,0.001]
[1762657620267,0.68506925,101630.0,101620.0,0.001]
[1762657620667,0.68506925,101630.0,101600.0,0.05752]
[1762657620668,0.1534194,101610.0,101600.0,0.05752]
[1762657620875,1.10183295,101610.0,101600.0,0.02324]
[1762657621064,1.10183295,101610.0,101600.0,0.04491]
[1762657621573,0.74103295,101610.0,101600.0,0.04491]
[1762657621763,0.63973949,101610.0,101600.0,0.04791]
[1762657622270,0.74203295,101610.0,101600.0,0.04791]
[1762657622568,0.74103295,101610.0,101600.0,0.04491]
[1762657622767,0.74103295,101610.0,101600.0,0.04691]
[1762657623156,0.74203295,101610.0,101600.0,0.02524]
[1762657623359,0.74203295,101610.0,101600.0,0.002]